[Event "ESP-ch Teams Honor 2024"]
[Site "Melilla"]
[Date "2024.10.14"]
[Round "3.22"]
[White "Muzychuk, Anna"]
[Black "Korneev, Oleg"]
[Result "1/2-1/2"]
[ECO "C45"]
[WhiteElo "2524"]
[BlackElo "2454"]
[Annotator "TA"]
[PlyCount "61"]
[EventDate "2024.10.11"]
[EventType "team-tourn"]
[EventCountry "ESP"]
[SourceTitle "playchess.com"]
[Source "ChessBase"]
[SourceQuality "1"]
[WhiteTeam "Costa Calida"]
[BlackTeam "Solvay"]
[TimeControl "5400+30"]

{[%evp 11,61,19,14,15,23,29,35,-19,0,-6,0,-40,-29,-47,16,21,39,53,81,69,87,29,54,48,51,31,46,20,18,0,0,0,0,0,0,0,0,0,0,0,0,0,0,0,0,0,0,0,0,0,0,0]} 1. e4 {[%emt 0:00:03]} e5 {[%emt 0:00:04]} 2. Nf3 {[%emt 0:00:05]} Nc6 {[%emt 0:00:06]} 3. d4 {[%emt 0:00:09]} exd4 {[%emt 0:00:05]} 4. Nxd4 {[%emt 0:00:05]} Bc5 {[%emt 0:00:05]} 5. Be3 {[%emt 0:00:12]} Qf6 {[%emt 0:01:10]} 6. c3 {[%emt 0:00:09]} d6 {[%emt 0:02:43]} 7. Qd2 {[%emt 0:08:22]} Bd7 {[%emt 0:07:28]} 8. b4 {[%emt 0:10:58]} Bb6 {[%emt 0:00:51]} 9. Na3 {[%emt 0:00:47]} (9. a4 $14) 9... Nge7 {[%emt 0:31:21]} 10. Nc4 {[%emt 0:04:09]} O-O {[%emt 0:12:33]} 11. Be2 {[%emt 0:08:40]} Qg6 {[%emt 0:06:58][%csl LRe4,LRg2] [#] Threatens to win with ...Bxd4.} 12. f3 {[%emt 0:07:14]} Bxd4 {[%emt 0:15:02]} ({Black should try} 12... Qxg2 $15 13. O-O-O Nxd4 14. cxd4 Qh3) 13. cxd4 $11 {[%emt 0:07:07]} d5 {[%emt 0:00:04]} 14. b5 $1 {[%emt 0:09:46]} dxc4 {[%emt 0:01:55]} 15. bxc6 {[%emt 0:00:05]} Qxc6 {[%emt 0:00:19]} 16. d5 {[%emt 0:00:17]} (16. Qb4 $16 Qd6 17. Qxc4) 16... Qf6 {[%emt 0:07:14]} 17. Bd4 {[%emt 0:01:35]} Qg6 {[%emt 0:07:11]} 18. Bxc4 {[%emt 0:00:38]} c6 {[%emt 0:00:05] Black is weak on the dark squares} 19. Bc5 {[%emt 0:11:13]} cxd5 $1 {[%emt 0:03:15] The position is equal.} 20. Bxe7 {[%emt 0:05:12] A strong pair of Bishops.} Rfe8 {[%emt 0:00:02]} 21. Bxd5 {[%emt 0:12:39]} Rxe7 {[%emt 0:00:04]} 22. O-O {[%emt 0:00:46]} Be6 {[%emt 0:02:12]} 23. Bxe6 {[%emt 0:01:52]} Qxe6 {[%emt 0:00:04]} 24. Rfd1 {[%emt 0:00:17][%cal Bf1d1,Bd1e1,Be1e7][%mdl 32]} f5 {[%emt 0:00:51]} 25. exf5 {[%emt 0:02:22]} Qxf5 {[%emt 0:00:02]} 26. Re1 {[%emt 0:00:31]} Rae8 {[%emt 0:00:29]} 27. Rxe7 {[%emt 0:00:14]} Qc5+ {[%emt 0:00:24]} 28. Qf2 {[%emt 0:00:14]} Qxf2+ {[%emt 0:00:05]} 29. Kxf2 {[%emt 0:00:01]} Rxe7 {[%emt 0:00:06]} 30. Rc1 {[%emt 0:00:13]} h6 {[%emt 0:01:59]} 31. Rc4 {[%emt 0:00:55] Weighted Error Value: White=0.12 (very precise) /Black=0.09 (flawless) .  Mistake:       	White=2     	Black=1      Inaccurate:     	White=2     	Black=1      OK:         	White=11    	Black=12     Best:        	---       	Black=1      Strong:       	White=1     	Black=1} 1/2-1/2

[Event "ESP-ch Teams Honor 2024"]
[Site "Melilla"]
[Date "2024.10.14"]
[Round "3.23"]
[White "Javakhishvili, Lela"]
[Black "Cuenca Jimenez, Jose Fernando"]
[Result "1-0"]
[ECO "D37"]
[WhiteElo "2425"]
[BlackElo "2480"]
[Annotator "TA"]
[PlyCount "111"]
[EventDate "2024.10.11"]
[EventType "team-tourn"]
[EventCountry "ESP"]
[SourceTitle "playchess.com"]
[Source "ChessBase"]
[SourceQuality "1"]
[WhiteTeam "Solvay"]
[BlackTeam "Costa Calida"]
[TimeControl "5400+30"]

{[%evp 19,111,0,15,0,0,0,37,33,31,33,53,62,62,62,57,56,87,83,90,95,115,79,125,94,131,133,139,146,154,154,152,152,140,134,145,113,141,133,145,137,137,130,120,120,162,171,142,171,159,83,81,81,82,82,137,121,218,218,219,215,230,211,279,293,267,233,400,385,487,472,451,460,418,250,448,423,405,388,1723,1546,2114,1349,1591,1438,4670,2106,4631,4627,5724,3098,29975,29977,6613,5850]} 1. d4 {[%emt 0:00:03]} d5 {[%emt 0:00:14]} 2. c4 {[%emt 0:00:32]} e6 {[%emt 0:00:08]} 3. Nf3 {[%emt 0:00:33]} Nf6 {[%emt 0:00:15]} 4. Nc3 {[%emt 0:00:25]} Nbd7 {[%emt 0:00:37]} 5. Bg5 {[%emt 0:01:37]} h6 {[%emt 0:01:39]} 6. Bh4 {[%emt 0:00:09]} Be7 {[%emt 0:00:24]} 7. e3 {[%emt 0:00:07]} O-O {[%emt 0:00:52]} 8. Rc1 {[%emt 0:01:45]} c6 {[%emt 0:00:16]} 9. a3 {[%emt 0:00:38]} Ne4 {[%emt 0:04:11]} 10. Bxe7 {[%emt 0:03:28]} Qxe7 {[%emt 0:00:41]} 11. Nxe4 {[%emt 0:10:42]} dxe4 {[%emt 0:00:09]} 12. Ne5 {[%emt 0:00:38]} Qf6 {[%emt 0:28:18]} 13. Nxd7 {[%emt 0:04:43] White is slightly better.} Bxd7 {[%emt 0:00:08]} 14. Qg4 {[%emt 0:11:03]} Rfe8 {[%emt 0:25:03][%cal Bf8e8,Be8e5,Be5e4][%mdl 32]} 15. Qxe4 {[%emt 0:03:45]} e5 {[%emt 0:01:51]} 16. dxe5 {[%emt 0:01:14]} Rxe5 {[%emt 0:00:04]} 17. Qd4 {[%emt 0:00:57]} Rd8 {[%emt 0:14:49]} 18. Rd1 $1 {[%emt 0:01:25][%cal Of1e2]} c5 {[%emt 0:01:15]} 19. Qc3 {[%emt 0:01:23]} Qg5 {[%emt 0:06:55]} 20. h4 {[%emt 0:02:31]} Qe7 {[%emt 0:00:17]} (20... Qf5 $142) 21. Be2 {[%emt 0:02:12]} Re4 {[%emt 0:02:47][%cal Od7c6]} 22. Bf3 {[%emt 0:07:48]} Bg4 {[%emt 0:05:55]} 23. Rxd8+ {[%emt 0:00:49]} Qxd8 {[%emt 0:00:00]} 24. Qd2 $1 {[%emt 0:02:57]} (24. Bxe4 $2 Qd1#) 24... Qxd2+ {[%emt 0:00:13]} 25. Kxd2 {[%emt 0:00:03]} Bxf3 {[%emt 0:00:18]} 26. gxf3 $16 {[%emt 0:00:02][%mdl 4096] Endgame. KR-KR} Re6 {[%emt 0:01:40]} (26... Rxc4 $2 {loses.} 27. b3 $18) 27. h5 {[%emt 0:04:59]} Kf8 {[%emt 0:01:44]} 28. Kc3 {[%emt 0:00:42]} Ke7 {[%emt 0:00:46]} 29. b4 {[%emt 0:00:47]} Ra6 {[%emt 0:00:46]} 30. bxc5 {[%emt 0:04:37]} Rxa3+ {[%emt 0:00:06] [#]} 31. Kd4 $1 {[%emt 0:00:04] Strongly threatening Rb1.} Ra2 {[%emt 0:00:50]} 32. Rb1 {[%emt 0:00:33]} Rd2+ {[%emt 0:00:06]} 33. Ke5 {[%emt 0:05:23]} Rd7 {[%emt 0:00:04]} 34. Ra1 {[%emt 0:01:10]} ({White should play} 34. f4) 34... Rc7 {[%emt 0:01:52]} 35. Rxa7 {[%emt 0:05:01][%cal Oc5c6] And now c6! would win.} Rxc5+ {[%emt 0:00:00]} 36. Kd4 {[%emt 0:00:07]} Rc7 {[%emt 0:00:06]} ({Better is} 36... Rxh5 37. Rxb7+ Ke6) 37. f4 {[%emt 0:03:42]} Kf6 {[%emt 0:01:15] [#]} (37... Rd7+ $16 38. Kc3 g6) 38. e4 $1 $18 {[%emt 0:01:21][%cal Be3e4,Be4e5][%mdl 32]} g6 {[%emt 0:00:40]} 39. hxg6 {[%emt 0:01:06]} Kxg6 {[%emt 0:00:16]} 40. Ra8 {[%emt 0:01:06]} Kg7 {[%emt 0:01:15]} 41. e5 {[%emt 0:02:13]} Kg6 {[%emt 0:01:02]} 42. Rh8 {[%emt 0:01:57]} Rc6 $2 {[%emt 0:00:38]} (42... h5 {is a better defense.} 43. Rg8+ Kh7) 43. Rd8 {[%emt 0:01:25]} Rc7 {[%emt 0:01:01]} 44. Rd6+ {[%emt 0:00:50]} Kg7 {[%emt 0:00:04]} 45. f5 {[%emt 0:00:43][%cal Bf4f5,Bf5f6][%mdl 32]} h5 {[%emt 0:00:08]} 46. Rb6 {[%emt 0:00:51]} (46. f4 $142) 46... h4 $2 {[%emt 0:00:58]} (46... Rd7+ {was called for.} 47. Ke3 h4) 47. f4 {[%emt 0:03:18]} Rd7+ {[%emt 0:00:45]} 48. Ke4 {[%emt 0:00:30]} h3 $2 {[%emt 0:00:37]} (48... Rc7 49. Kf3 h3) 49. Rb3 {[%emt 0:01:38]} h2 {[%emt 0:00:15]} 50. f6+ {[%emt 0:00:19]} Kg6 {[%emt 0:00:42]} 51. Rg3+ {[%emt 0:00:19]} Kh5 {[%emt 0:00:23]} 52. Rh3+ {[%emt 0:00:04]} Kg4 {[%emt 0:00:03]} 53. Rxh2 {[%emt 0:00:03]} Rc7 {[%emt 0:00:16]} 54. Rg2+ {[%emt 0:00:18]} Kh3 {[%emt 0:00:05]} 55. Rg7 {[%emt 0:00:44]} Rxc4+ {[%emt 0:01:27]} 56. Kd5 {[%emt 0:00:11] Weighted Error Value: White=0.09 (flawless) /Black=0.53.  Mistake:       	White=2     	Black=6      Inaccurate:     	White=1     	Black=6      OK:         	White=16    	Black=11     Best:        	White=6     	Black=3      Strong:       	White=4     	---} 1-0

[Event "ESP-ch Teams Honor 2024"]
[Site "Melilla"]
[Date "2024.10.14"]
[Round "3.24"]
[White "Camacho Collados, Marcos"]
[Black "Tejedor Fuente, Enrique"]
[Result "0-1"]
[ECO "A05"]
[WhiteElo "2453"]
[BlackElo "2400"]
[Annotator "TA"]
[PlyCount "112"]
[EventDate "2024.10.11"]
[EventType "team-tourn"]
[EventCountry "ESP"]
[SourceTitle "playchess.com"]
[Source "ChessBase"]
[SourceQuality "1"]
[WhiteTeam "Costa Calida"]
[BlackTeam "Solvay"]
[TimeControl "5400+30"]

{[%evp 35,112,-39,-26,-38,-25,-29,-34,-31,-31,-33,-27,-38,-33,-29,-33,-39,-33,-30,0,-35,-35,-31,-41,-38,-15,-35,-34,-43,-64,-92,-31,-52,-12,-35,-22,-20,-32,-60,-52,-57,-75,-100,-66,-125,-126,-138,-136,-187,-198,-199,-157,-183,-198,-183,-174,-194,-143,-156,-99,-108,-85,-238,-164,-166,-120,-1126,-1047,-1613,-1374,-2451,-901,-1234,-1168,-984,-648,-29989,-29990,-29996,-513]} 1. Nf3 {[%emt 0:00:03]} d5 {[%emt 0:00:08]} 2. g3 {[%emt 0:00:09]} Nf6 {[%emt 0:00:15]} 3. Bg2 {[%emt 0:00:21]} e6 {[%emt 0:00:03]} 4. O-O {[%emt 0:00:22]} Be7 {[%emt 0:00:08]} 5. d3 {[%emt 0:00:40]} O-O {[%emt 0:00:11]} 6. a3 {[%emt 0:01:41] A07: Réti Opening: New York and Capablanca Systems.} b6 {[%emt 0:05:23]} 7. Nc3 {[%emt 0:14:27]} Bb7 {[%emt 0:00:54]} 8. Bf4 $146 {[%emt 0:16:08]} ({Predecessor:} 8. d4 Nbd7 9. Bg5 c5 10. Re1 a6 11. e4 dxe4 12. Nxe4 Nxe4 13. Bxe7 Qxe7 14. Ne5 {0-1 Amuso,J (777)-Raines,D (1243) IECC CL0-2018.00 email}) 8... Nh5 {[%emt 0:00:30]} 9. Bd2 {[%emt 0:01:17]} Nf6 {[%emt 0:01:40]} 10. Re1 {[%emt 0:19:07]} d4 {[%emt 0:06:51]} 11. Na2 {[%emt 0:00:22]} c5 {[%emt 0:01:51]} 12. c3 {[%emt 0:03:26]} dxc3 {[%emt 0:02:46]} 13. Nxc3 {[%emt 0:00:49]} Nc6 {[%emt 0:00:09]} 14. Rc1 {[%emt 0:03:45]} a6 {[%emt 0:04:39]} 15. Na4 {[%emt 0:05:05]} Nd7 {[%emt 0:02:33]} 16. Be3 {[%emt 0:03:51]} Na5 {[%emt 0:01:31]} 17. Rb1 {[%emt 0:08:35]} c4 {[%emt 0:07:20]} 18. d4 {[%emt 0:02:20]} b5 {[%emt 0:03:16]} 19. Nc3 {[%emt 0:00:09]} Nf6 {[%emt 0:04:47]} 20. Bg5 {[%emt 0:00:41]} Nb3 {[%emt 0:07:44]} 21. Bxf6 {[%emt 0:00:08]} Bxf6 {[%emt 0:00:10]} 22. e3 {[%emt 0:00:05]} Qb6 {[%emt 0:00:59]} 23. Qc2 {[%emt 0:00:55]} Qc6 {[%emt 0:05:40]} 24. Rbd1 {[%emt 0:00:37]} Rfd8 {[%emt 0:00:29]} 25. Nh4 {[%emt 0:02:45]} Qc7 {[%emt 0:02:59]} 26. Nf3 {[%emt 0:01:18]} Qc6 {[%emt 0:03:38]} 27. Rf1 {[%emt 0:01:21]} Rac8 {[%emt 0:06:32]} 28. Ne1 {[%emt 0:00:33]} Qb6 {[%emt 0:00:09]} 29. f4 {[%emt 0:03:16]} a5 {[%emt 0:07:17]} 30. Bxb7 {[%emt 0:00:22]} Qxb7 {[%emt 0:00:02]} 31. Ne4 {[%emt 0:00:32]} Be7 {[%emt 0:08:04]} 32. g4 {[%emt 0:01:32]} Qd5 {[%emt 0:03:01]} (32... f5 $17 33. gxf5 exf5) 33. f5 {[%emt 0:01:23]} e5 {[%emt 0:02:09]} 34. f6 $1 {[%emt 0:03:44]} gxf6 $1 {[%emt 0:00:28]} 35. Rf5 $1 {[%emt 0:00:52]} Qe6 {[%emt 0:02:33]} 36. Nf3 {[%emt 0:02:34]} exd4 {[%emt 0:02:01]} 37. exd4 {[%emt 0:00:26]} Rd5 {[%emt 0:00:12]} 38. Rxd5 {[%emt 0:02:49]} Qxd5 {[%emt 0:00:02]} 39. Qe2 {[%emt 0:00:13]} (39. Kf2 $15) 39... b4 $17 {[%emt 0:02:09]} 40. axb4 {[%emt 0:00:01]} axb4 {[%emt 0:00:08]} 41. Ng3 {[%emt 0:00:07]} (41. Kf2 $17) 41... c3 $19 {[%emt 0:03:00]} 42. bxc3 {[%emt 0:00:02]} bxc3 {[%emt 0:00:03]} 43. Nf5 {[%emt 0:00:14]} Bf8 {[%emt 0:00:23]} 44. Ne1 {[%emt 0:00:16]} Nd2 {[%emt 0:01:00]} 45. Nc2 {[%emt 0:02:07]} Qb7 {[%emt 0:01:46]} (45... Ra8 $19 {...Qb3 is the strong threat.} 46. Nfe3 Qg5) 46. h3 {[%emt 0:00:42]} Qa8 {[%emt 0:00:27]} (46... Ra8 $142 47. Qd3 Ra2) 47. Ra1 $17 {[%emt 0:00:37]} Qd5 {[%emt 0:02:12]} 48. Ra7 $2 {[%emt 0:01:05]} (48. Nce3 $17 Qb7 49. Nc2) 48... Nf3+ {[%emt 0:00:33]} 49. Kf2 {[%emt 0:00:12] [#]} Ng5 $1 {[%emt 0:00:03]} 50. Qd3 $2 {[%emt 0:00:52][%mdl 8192]} (50. h4 $17 Ne4+ 51. Kg1) 50... Qh1 $19 {[%emt 0:00:18]} 51. h4 {[%emt 0:00:30]} Ne4+ {[%emt 0:00:29]} 52. Ke3 {[%emt 0:00:27]} Re8 {[%emt 0:00:26]} (52... Nd2 $142 53. Qe2 Re8+ 54. Ne7+ Bxe7) 53. Re7 {[%emt 0:00:32]} Qg1+ {[%emt 0:02:09]} (53... Rxe7 54. Nxe7+ Bxe7 55. Qxe4 Qh3+ (55... Qxh4 56. Qxe7 Qh3+ 57. Ke2 $11) 56. Ke2 $17) 54. Kxe4 {[%emt 0:00:03]} Bxe7 {[%emt 0:00:31]} (54... Qxg4+ 55. Kd5 Rxe7 (55... Bxe7 $2 56. Nh6+ Kh8 57. Nxg4 $18) 56. Nxe7+ Bxe7 57. Kc4 $19) 55. Kd5 {[%emt 0:00:51]} Qg2+ {[%emt 0:00:15]} (55... Qxg4 $2 56. Nh6+ Kg7 57. Nxg4 $18) 56. Kc4 {[%emt 0:00:29]} Qc6+ {[%emt 0:00:06]} (56... Qxg4 $2 {loses.} 57. Nh6+ (57. Kxc3 $2 {too greedy.} Kh8 $19) 57... Kf8 58. Nxg4 $18) (56... Rc8+ $142 57. Kb3 Qd5+ 58. Ka4 Ra8+ 59. Qa6 Rxa6#) 0-1

[Event "ESP-ch Teams Honor 2024"]
[Site "Melilla"]
[Date "2024.10.15"]
[Round "4.1"]
[White "Puranik, Abhimanyu"]
[Black "Fedoseev, Vladimir"]
[Result "0-1"]
[ECO "B15"]
[WhiteElo "2639"]
[BlackElo "2698"]
[Annotator "TA"]
[PlyCount "80"]
[EventDate "2024.10.11"]
[EventType "team-tourn"]
[EventCountry "ESP"]
[SourceTitle "playchess.com"]
[Source "ChessBase"]
[SourceQuality "1"]
[WhiteTeam "Sestao"]
[BlackTeam "Costa Calida"]
[TimeControl "5400+30"]

{[%evp 18,80,40,32,40,17,35,16,25,26,44,16,33,-21,-8,-31,-22,-22,-34,-25,-28,-51,80,77,79,79,96,-26,33,25,56,45,47,0,0,-26,-22,-36,-36,-83,-14,-108,-104,-474,-469,-472,-456,-771,-774,-761,-738,-963,-830,-1052,-1004,-1662,-975,-1095,-1559,-5381,-2484,-5373,-5373,-5373,-1314]} 1. e4 {[%emt 0:00:19]} c6 {[%emt 0:03:53]} 2. d4 {[%emt 0:00:38]} d5 {[%emt 0:00:06]} 3. Nc3 {[%emt 0:00:10]} dxe4 {[%emt 0:00:13]} 4. Nxe4 {[%emt 0:00:04]} Nf6 {[%emt 0:00:42]} 5. Nxf6+ {[%emt 0:00:50]} exf6 {[%emt 0:00:08]} 6. c3 {[%emt 0:00:08]} Bd6 {[%emt 0:00:12]} 7. Bd3 {[%emt 0:00:16]} O-O {[%emt 0:00:09]} 8. Qc2 {[%emt 0:01:29]} Re8+ {[%emt 0:00:23]} 9. Ne2 {[%emt 0:00:14]} h6 {[%emt 0:00:15]} 10. O-O {[%emt 0:01:26]} Nd7 {[%emt 0:00:23]} 11. Ng3 {[%emt 0:08:40]} Nb6 {[%emt 0:05:39]} 12. Bd2 {[%emt 0:01:47]} Be6 {[%emt 0:02:15] The position is equal.} 13. Rfe1 {[%emt 0:02:30]} a5 {[%emt 0:06:23]} 14. Re4 {[%emt 0:09:07]} Bf8 {[%emt 0:06:42]} 15. f4 {[%emt 0:19:25]} (15. c4 $1 $14) 15... c5 {[%emt 0:08:34]} 16. f5 {[%emt 0:11:14]} Bd7 {[%emt 0:00:14]} 17. Rg4 {[%emt 0:01:58]} Kh8 {[%emt 0:02:12]} 18. Kh1 {[%emt 0:11:33]} Bc6 {[%emt 0:14:06]} 19. dxc5 {[%emt 0:04:34] [#]} Qd5 {[%emt 0:04:28]} 20. Bxh6 $16 {[%emt 0:04:40][%cal Og3e4] Ne4! is the strong threat.} (20. cxb6 $2 Qxg2#) 20... Qxc5 {[%emt 0:04:42]} 21. Bf4 {[%emt 0:02:18] Strongly threatening Ne4.} Rad8 {[%emt 0:01:53]} 22. h3 {[%emt 0:09:07]} ({White should try} 22. Be4 $16 Kg8 23. Bxc6 bxc6 24. Nh5) 22... Nc4 {[%emt 0:14:41]} ({Black should play} 22... Nd5 $11 23. Be4 Nxf4 24. Rxf4 Bd6 25. Bxc6 Bxf4 26. Bxe8 Rxe8) 23. Be4 $14 {[%emt 0:06:04] Threatens to win with Qe2.} Ne5 {[%emt 0:06:15]} ({Much weaker is} 23... Bxe4 $6 24. Rh4+ Kg8 25. Nxe4 $16) 24. Rh4+ {[%emt 0:01:02]} Kg8 {[%emt 0:00:06]} 25. Bxc6 {[%emt 0:00:45]} (25. Kh2 $14) 25... Qxc6 $11 {[%emt 0:01:02]} 26. Bxe5 {[%emt 0:02:00]} Rxe5 {[%emt 0:00:24]} 27. Rd1 {[%emt 0:00:27]} Rde8 {[%emt 0:01:15][%mdl 1024] Black has compensation.} 28. Rhd4 {[%emt 0:00:46]} (28. Qd2 $15 {feels stronger.}) 28... Re3 {[%emt 0:02:11]} (28... Bc5 $17 29. R4d3 Re1+ 30. Kh2 Bg1+ 31. Kh1 Bb6+ 32. Kh2 Bc7 33. Rxe1 Rxe1) 29. Qf2 {[%emt 0:00:46]} (29. R4d3 $1 $11) 29... Bc5 $36 {[%emt 0:02:19][%mdl 2048] Black has strong initiative. Black is more active.} 30. Rd8 {[%emt 0:00:26][%mdl 8192] [#] This costs White the game.} (30. Rc4 $17 {nothing else works.}) 30... Rd3 $3 $19 {[%emt 0:02:03][%mdl 512] Black is clearly winning.} 31. Rxe8+ {[%emt 0:00:38]} Qxe8 {[%emt 0:00:05]} 32. Qxc5 {[%emt 0:00:36]} (32. Re1 $142 Rd1 (32... Bxf2 33. Rxe8+ Kh7 34. Ne4 $16) 33. Qxc5 Rxe1+ (33... Qxe1+ $2 34. Kh2 $19) 34. Kh2) 32... Rxd1+ {[%emt 0:00:06][%mdl 4096] Endgame. KQR-KQN} 33. Kh2 {[%emt 0:00:01]} Rd2 {[%emt 0:01:59]} 34. b4 {[%emt 0:00:57]} a4 {[%emt 0:00:41]} 35. b5 {[%emt 0:00:04]} Qe5 {[%emt 0:00:49]} 36. Qc8+ {[%emt 0:00:02]} Kh7 {[%emt 0:00:05] ( -> ...Qd5)} 37. Qc4 {[%emt 0:00:05]} Qd5 {[%emt 0:01:02][%csl Gd2][%cal Rd5g2]} 38. Qh4+ {[%emt 0:00:07]} Kg8 {[%emt 0:00:06][%csl Gd2][%cal Rd5g2]} 39. Ne4 {[%emt 0:00:27]} Qe5+ {[%emt 0:00:04]} 40. Ng3 {[%emt 0:00:18]} a3 {[%emt 0:01:33] Weighted Error Value: White=0.87/Black=0.18 (very precise) .  Loses game:     	White=1     	---        Mistake:       	White=6     	Black=3      Inaccurate:     	White=2     	---        OK:         	White=6     	Black=5      Best:        	White=2     	Black=2      Brilliant:      	---       	Black=1} (40... Rxa2 $142 41. Qg4 Ra3 (41... Qxc3 $2 42. Qf4 $19) (41... Qxb5 $2 42. h4 $19)) 0-1

[Event "ESP-ch Teams Honor 2024"]
[Site "Melilla"]
[Date "2024.10.15"]
[Round "4.2"]
[White "Deac, Bogdan-Daniel"]
[Black "Svane, Frederik"]
[Result "1/2-1/2"]
[ECO "E54"]
[WhiteElo "2691"]
[BlackElo "2655"]
[Annotator "TA"]
[PlyCount "64"]
[EventDate "2024.10.11"]
[EventType "team-tourn"]
[EventCountry "ESP"]
[SourceTitle "playchess.com"]
[Source "ChessBase"]
[SourceQuality "1"]
[WhiteTeam "Costa Calida"]
[BlackTeam "Sestao"]
[TimeControl "5400+30"]

{[%evp 20,64,19,12,4,0,9,0,13,0,0,0,0,0,0,0,0,-12,-18,-26,-31,-42,-42,-41,-41,-52,11,0,12,10,33,23,27,10,9,7,26,25,27,23,28,20,20,12,12,0,0]} 1. d4 {[%emt 0:00:03]} Nf6 {[%emt 0:00:10]} 2. c4 {[%emt 0:00:06]} e6 {[%emt 0:00:05]} 3. Nc3 {[%emt 0:00:06]} Bb4 {[%emt 0:00:15]} 4. e3 {[%emt 0:00:07]} d5 {[%emt 0:03:21]} 5. Nf3 {[%emt 0:00:36]} O-O {[%emt 0:00:37]} 6. Bd3 {[%emt 0:00:49]} dxc4 {[%emt 0:00:09]} 7. Bxc4 {[%emt 0:00:03]} c5 {[%emt 0:00:09]} 8. O-O {[%emt 0:00:09]} Nc6 {[%emt 0:00:07]} 9. a3 {[%emt 0:07:24]} Ba5 {[%emt 0:00:07]} 10. Qd3 {[%emt 0:04:50]} a6 {[%emt 0:00:09]} 11. dxc5 {[%emt 0:00:34] With the idea b4.} (11. Ne4 {is more complex.} b5 12. Nxf6+ Qxf6 13. Qe4) 11... Qxd3 {[%emt 0:00:11]} 12. Bxd3 {[%emt 0:00:02] next b4 is good for White.} Bxc3 {[%emt 0:00:15]} 13. bxc3 {[%emt 0:00:02]} Na5 {[%emt 0:05:26]} 14. Nd2 {[%emt 0:13:27]} Bd7 {[%emt 0:16:10]} 15. a4 {[%emt 0:25:46]} Bc6 {[%emt 0:00:28]} 16. c4 {[%emt 0:01:54]} Rfd8 {[%emt 0:04:20]} 17. Bc2 {[%emt 0:01:40]} Rac8 {[%emt 0:10:41]} 18. f3 {[%emt 0:06:08]} Be8 {[%emt 0:08:13]} 19. Rd1 {[%emt 0:02:43]} Rxc5 {[%emt 0:06:07]} 20. Ba3 {[%emt 0:00:11]} Rc7 {[%emt 0:03:24]} 21. Rac1 {[%emt 0:00:07]} Rdc8 {[%emt 0:03:00]} 22. c5 {[%emt 0:02:24] [#]} b6 {[%emt 0:06:24]} 23. Bd3 {[%emt 0:16:32]} bxc5 {[%emt 0:02:17]} 24. Bxa6 {[%emt 0:00:11] This pair of bishops is nice.} Bxa4 {[%emt 0:00:26]} 25. Bxc8 {[%emt 0:00:03] Ba6 is the strong threat.} Bxd1 {[%emt 0:00:05]} 26. Rxc5 {[%emt 0:01:32]} Rxc5 {[%emt 0:00:07]} 27. Bxc5 {[%emt 0:00:02]} Nb3 {[%emt 0:00:07]} 28. Nxb3 {[%emt 0:00:04]} Bxb3 {[%emt 0:00:04][%cal Bd1b3,Bb3c4,Bc4b5,Bb5d7][%mdl 32]} 29. e4 {[%emt 0:00:09]} Bc4 {[%emt 0:01:41]} 30. Kf2 {[%emt 0:00:11]} Bb5 {[%emt 0:00:15] The position is equal.} 31. Ke3 {[%emt 0:00:29]} Nd7 {[%emt 0:00:16]} 32. Bxd7 {[%emt 0:00:36]} Bxd7 {[%emt 0:00:05] Weighted Error Value: White=0.07 (flawless) /Black=0.08 (flawless) .  Mistake:       	---       	Black=1      OK:         	White=6     	Black=10     Best:        	White=1     	Black=2} 1/2-1/2

[Event "ESP-ch Teams Honor 2024"]
[Site "Melilla"]
[Date "2024.10.15"]
[Round "4.3"]
[White "Suarez Garcia, Carlos"]
[Black "Ibarra Jerez, Jose Carlos"]
[Result "1/2-1/2"]
[ECO "A20"]
[WhiteElo "2441"]
[BlackElo "2559"]
[Annotator "RC"]
[PlyCount "55"]
[EventDate "2024.10.11"]
[EventType "team-tourn"]
[EventCountry "ESP"]
[SourceTitle "playchess.com"]
[Source "ChessBase"]
[SourceQuality "1"]
[WhiteTeam "Sestao"]
[BlackTeam "Costa Calida"]
[TimeControl "5400+30"]

1. c4 {[%emt 0:00:09]} e5 {[%emt 0:00:33]} 2. g3 {[%emt 0:00:23]} Nf6 {[%emt 0:03:05]} 3. Bg2 {[%emt 0:00:33]} h6 {[%emt 0:00:24]} 4. Nf3 {[%emt 0:03:11]} e4 {[%emt 0:01:38]} 5. Nd4 {[%emt 0:00:29]} d5 {[%emt 0:04:25]} 6. cxd5 {[%emt 0:00:05]} Qxd5 {[%emt 0:01:01]} 7. e3 {[%emt 0:00:13]} Qe5 {[%emt 0:01:38]} 8. f4 {[%emt 0:05:13]} exf3 {[%emt 0:10:54]} 9. Nxf3 {[%emt 0:00:07]} Qh5 {[%emt 0:05:51]} 10. Nc3 {[%emt 0:01:46]} Nc6 {[%emt 0:03:49]} 11. O-O {[%emt 0:02:31]} Bh3 {[%emt 0:01:53]} 12. d4 {[%emt 0:13:03]} Bxg2 {[%emt 0:05:40]} 13. Kxg2 {[%emt 0:00:04]} O-O-O {[%emt 0:01:22]} 14. Bd2 {[%emt 0:09:00]} Bb4 {[%emt 0:07:55]} 15. Nh4 {[%emt 0:12:31]} Qxd1 {[%emt 0:04:44]} 16. Raxd1 {[%emt 0:00:02]} Na5 {[%emt 0:02:43]} 17. Nf5 {[%emt 0:12:27]} Ne8 {[%emt 0:02:20]} 18. Ne4 {[%emt 0:04:12]} Bxd2 {[%emt 0:01:31]} 19. Rxd2 {[%emt 0:01:54]} f6 {[%emt 0:02:43]} 20. Ne7+ {[%emt 0:03:12]} Kb8 {[%emt 0:02:18]} 21. Rc2 {[%emt 0:03:51]} Rd7 {[%emt 0:08:20]} 22. Ng6 {[%emt 0:00:17]} Rg8 {[%emt 0:00:15]} 23. Nc5 {[%emt 0:02:08]} Rd6 {[%emt 0:00:53]} 24. Ne7 {[%emt 0:00:57]} Rh8 {[%emt 0:00:21]} 25. Ng6 {[%emt 0:02:16]} Rg8 {[%emt 0:00:19]} 26. Ne7 {[%emt 0:00:11]} Rh8 {[%emt 0:00:12]} 27. Ng6 {[%emt 0:01:49]} Rg8 {[%emt 0:00:15]} 28. Ne7 {[%emt 0:00:20]} 1/2-1/2